{"text_format":"1","workbook":"xlsx","n_sheets":8,"sheets":["LESTVICA redni del","KOČNICA","RAZPORED in REZULTATI ","List1","Spisek igralcev","list PCT","list PCT (2)","list PCT (3)"],"not_rendered":{"charts":0,"images":2,"macros":1,"external_links":0,"defined_names":33,"comments":0,"pivot_tables":0},"unopened":[],"bounds":{"document_bytes":16777216,"sheet_cells":100000,"rows_first":2000,"rows_last":500,"rows_between":2000,"halvings":0,"cell_chars":16384,"cell_head_chars":4096},"cells_cut":0,"cells_raw":0,"read":"whole","date_system":"1900"}

{"sheet":"LESTVICA redni del","index":0,"n_rows":11,"n_cols":12,"rows_kept":11,"cut":false,"hidden":false,"merged":[[2,3,2,4],[2,5,2,7],[2,8,2,10]]}
["Športne igre Jesenic 2022/23 – Liga v odbojki, lestvica"]
[]
[null,null,null,"Tekme",null,"Seti",null,null,"Točke v setih"]
["poz. ","ekipa","točke","zm.","izg.","zm.","izg.","količnik","zm.","izg.","količnik"]
[1,{"$f":"L5","v":"Unimotion"},{"$f":"SUMPRODUCT((ekipa1=$L5)*((tocke11)))+SUMPRODUCT((ekipa2=$L5)*((tocke12)))","v":50},{"$f":"SUMPRODUCT((ekipa1=$L5)*((_rez11)>(_rez12)))+SUMPRODUCT((ekipa2=$L5)*((_rez11)<(_rez12)))","v":18},{"$f":"SUMPRODUCT((ekipa1=$L5)*((_rez11)<(_rez12)))+SUMPRODUCT((ekipa2=$L5)*((_rez11)>(_rez12)))","v":0},{"$f":"SUMPRODUCT((ekipa1=$L5)*((_set11)>(_set12)))+SUMPRODUCT((ekipa2=$L5)*((_set11)<(_set12)))+SUMPRODUCT((ekipa1=$L5)*((_set21)>(_set22)))+SUMPRODUCT((ekipa2=$L5)*((_set21)<(_set22)))+SUMPRODUCT((ekipa1=$L5)*((_set31)>(_set32)))+SUMPRODUCT((ekipa2=$L5)*((_set31)<(_set32)))","v":36},{"$f":"SUMPRODUCT((ekipa1=$L5)*((_set12)>(_set11)))+SUMPRODUCT((ekipa2=$L5)*((_set12)<(_set11)))+SUMPRODUCT((ekipa1=$L5)*((_set22)>(_set21)))+SUMPRODUCT((ekipa2=$L5)*((_set22)<(_set21)))+SUMPRODUCT((ekipa1=$L5)*((_set32)>(_set31)))+SUMPRODUCT((ekipa2=$L5)*((_set32)<(_set31)))","v":4},{"$f":"IF(AND((G5=0)*(F5=0)),0,IF(G5>0,F5/G5,\"\"))","v":9},{"$f":"SUMPRODUCT((ekipa1=$L5)*(_set11))+SUMPRODUCT((ekipa2=$L5)*(_set12))+SUMPRODUCT((ekipa1=$L5)*(_set21))+SUMPRODUCT((ekipa2=$L5)*(_set22))+SUMPRODUCT((ekipa1=$L5)*(_set31))+SUMPRODUCT((ekipa2=$L5)*(_set32))","v":946},{"$f":"SUMPRODUCT((ekipa1=$L5)*(_set12))+SUMPRODUCT((ekipa2=$L5)*(_set11))+SUMPRODUCT((ekipa1=$L5)*(_set22))+SUMPRODUCT((ekipa2=$L5)*(_set21))+SUMPRODUCT((ekipa1=$L5)*(_set32))+SUMPRODUCT((ekipa2=$L5)*(_set31))","v":648},{"$f":"IF(AND((J5=0)*(I5=0)),0,IF(J5>0,I5/J5,\"\"))","v":1.4598765432098766},"Unimotion"]
[2,"Max bar",37,12,6,26,13,2,889,694,1.2809798270893371,"Max bar"]
[3,"PULITO Solutions",33,11,7,24,16,1.5,871,808,1.0779702970297029,"PULITO Solutions"]
[4,"Story team",27,10,8,21,20,1.05,836,815,1.0257668711656442,"Story team"]
[5,"Outdoor Slovenia",21,6,12,18,27,0.66666666666666663,813,900,0.90333333333333332,"Outdoor Slovenia"]
[6,"Rožice",12,3,15,10,31,0.32258064516129031,711,908,0.78303964757709255,"Rožice"]
[7,"Špica Bled",9,3,15,7,31,0.22580645161290322,579,872,0.66399082568807344,"Špica Bled"]

{"sheet":"KOČNICA","index":1,"n_rows":23,"n_cols":19,"rows_kept":23,"cut":false,"hidden":false,"merged":[[13,1,14,1],[13,2,14,10],[2,1,5,1],[6,1,10,1],[11,1,12,1],[0,1,0,12],[1,5,1,6],[1,7,1,8],[1,9,1,10],[1,11,1,12]]}
[null,"REZULTATI, RAZPORED - Liga v odbojki 2022/23 - razpored končnice"]
["Št.","Datum","Ekipa 1","Ekipa 2","Ura, igrišče","1. set",null,"2. set",null,"3. set",null,"Rezultat"]
[null,"2023-02-21","Unimotion",null,"prosti",null,null,null,null,null,null,{"$f":"IF(F3>G3,1,0)+IF(H3>I3,1,0)+IF(J3>K3,1,0)","v":0},{"$f":"IF(G3>F3,1,0)+IF(I3>H3,1,0)+IF(K3>J3,1,0)","v":0},null,null,null,null,"Sodniki število tekem:"]
[64,null,"Max bar","Špica Bled","19:00-2",25,18,19,25,15,10,{"$f":"IF(F4>G4,1,0)+IF(H4>I4,1,0)+IF(J4>K4,1,0)","v":2},{"$f":"IF(G4>F4,1,0)+IF(I4>H4,1,0)+IF(K4>J4,1,0)","v":1},null,null,"divjak"]
[65,null,"Pulito Solutions","Rožice","20:00-1",25,18,25,17,null,null,2,0,null,null,"gaber",null,"Divjak",{"$f":"COUNTIF(P3:P13,R5)","v":2}]
[66,null,"Story team","Outdoor Slovenia","20:00-2",25,19,25,23,null,null,{"$f":"IF(F6>G6,1,0)+IF(H6>I6,1,0)+IF(J6>K6,1,0)","v":2},{"$f":"IF(G6>F6,1,0)+IF(I6>H6,1,0)+IF(K6>J6,1,0)","v":0},null,null,"divjak"]
[68,"2023-02-28","Unimotion","Story team","19:00-1",31,29,25,17,null,null,2,0,null,null,null,null,"Subo",{"$f":"COUNTIF(P5:P13,R7)","v":0}]
[69,null,"Max bar","Pulito Solutions","20:00-1",25,14,25,19,null,null,2,0]
[70,null,"Špica Bled","Rožice","18:30 - 2",19,25,25,22,15,11,{"$f":"IF(F9>G9,1,0)+IF(H9>I9,1,0)+IF(J9>K9,1,0)","v":2},{"$f":"IF(G9>F9,1,0)+IF(I9>H9,1,0)+IF(K9>J9,1,0)","v":1},"tekme za 5.-7.mesto"]
[71,null,"Špica Bled","Outdoor Slovenia","19:15 - 2",18,25,12,25,null,null,0,2,"tekme za 5.-7.mesto"]
[72,null,"Rožice","Outdoor Slovenia","20:30 - 2",17,25,16,25,null,null,0,2,"tekme za 5.-7.mesto"]
[73,"2023-03-07","Story team","Pulito Solutions","19:00:00",15,25,20,25,null,null,0,2,"tekma za 3. mesto - celo igrišče"]
[74,null,"Unimotion","Max bar","20:00:00",25,14,25,19,null,null,2,0,"tekma za 1. mesto"]
[null,"2023-03-14","zaključni turnir žrebanih ekip",null,null,null,null,null,null,null,null,{"$f":"IF(F14>G14,1,0)+IF(H14>I14,1,0)+IF(J14>K14,1,0)","v":0},{"$f":"IF(G14>F14,1,0)+IF(I14>H14,1,0)+IF(K14>J14,1,0)","v":0}]
[null,null,null,null,null,null,null,null,null,null,null,{"$f":"IF(F15>G15,1,0)+IF(H15>I15,1,0)+IF(J15>K15,1,0)","v":0},{"$f":"IF(G15>F15,1,0)+IF(I15>H15,1,0)+IF(K15>J15,1,0)","v":0}]
[]
[null,"1. mesto","Unimotion"]
[null,"2. mesto","Max Bar"]
[null,"3. mesto","Pulito Solutions"]
[null,"4. mesto","Story team"]
[null,"5. mesto","Outdoor Slovenia"]
[null,"6. mesto","Špica team"]
[null,"7. mesto","Rožice"]

{"sheet":"RAZPORED in REZULTATI ","index":2,"n_rows":66,"n_cols":19,"rows_kept":66,"cut":false,"hidden":false,"merged":[[46,1,49,1],[50,1,53,1],[0,1,0,12],[1,11,1,12],[62,1,65,1],[58,1,61,1],[54,1,57,1],[14,1,17,1],[42,1,45,1],[38,1,41,1],[34,1,37,1],[10,1,13,1],[18,1,21,1],[26,1,29,1],[22,1,25,1],[30,1,33,1],[0,13,0,14],[6,1,9,1],[1,9,1,10],[1,7,1,8],[1,5,1,6],[2,1,5,1]]}
[null,"REZULTATI, RAZPORED - Liga v odbojki 2022/23",null,null,null,null,null,null,null,null,null,null,null,"točke za lestvico"]
["Št.","Datum","Ekipa 1","Ekipa 2","Ura, igrišče","1. set",null,"2. set",null,"3. set",null,"Rezultat",null,"t1","t2","Sodili:"]
[null,"2022-10-04",null,null,null,null,null,null,null,null,null,{"$f":"IF(F3>G3,1,0)+IF(H3>I3,1,0)+IF(J3>K3,1,0)","v":0},{"$f":"IF(G3>F3,1,0)+IF(I3>H3,1,0)+IF(K3>J3,1,0)","v":0},{"$f":"IF(AND(L3=2,M3=0),3,L3)","v":0},{"$f":"IF(AND(M3=2,L3=0),3,M3)","v":0},null,null,"Sodniki število tekem:"]
[1,null,"Outdoor Slovenia","Rožice","19:00-2",26,24,25,14,null,null,2,0,3,0,"Divjak",null,"Divjak",{"$f":"COUNTIF(P3:P58,R4)","v":24}]
[2,null,"Max Bar","Špica Bled","20:00-1",25,11,25,14,null,null,{"$f":"IF(F5>G5,1,0)+IF(H5>I5,1,0)+IF(J5>K5,1,0)","v":2},{"$f":"IF(G5>F5,1,0)+IF(I5>H5,1,0)+IF(K5>J5,1,0)","v":0},3,0,"Gaber"]
[3,null,"PULITO Solutions","Story Team","20:00-2",25,22,25,22,null,null,2,0,3,0,"Divjak",null,"Gaber",{"$f":"COUNTIF(P3:P58,R6)","v":23}]
[4,"2022-10-11","PULITO Solutions","Max bar","19:00-1",15,25,16,25,null,null,0,2,0,3,"Divjak",null,"Subo",{"$f":"COUNTIF(P4:P59,R7)","v":2}]
[5,null,"Rožice","Story team","19:00-2",23,25,14,25,null,null,0,2,0,3,"Gaber"]
[6,null,"Rožice","PULITO Solutions","20:00-1",19,25,16,25,null,null,0,2,0,3,"Divjak"]
[7,null,"Max bar","Story team","20:00-2",25,18,27,25,null,null,{"$f":"IF(F10>G10,1,0)+IF(H10>I10,1,0)+IF(J10>K10,1,0)","v":2},0,3,0,"Gaber"]
[8,"2022-10-18","Unimotion","Outdoor Slovenia","19:00-1",25,23,26,28,15,7,2,1,2,1,"Divjak"]
[9,null,"Rožice","Špica Bled","19:00-2",25,0,25,0,null,null,2,0,3,0]
[10,null,"Unimotion","Rožice","20:00-1",25,15,25,9,null,null,2,{"$f":"IF(G13>F13,1,0)+IF(I13>H13,1,0)+IF(K13>J13,1,0)","v":0},3,0,"Divjak"]
[11,null,"Špica Bled","Outdoor Slovenia","20:00-2",0,25,0,25,null,null,0,{"$f":"IF(G14>F14,1,0)+IF(I14>H14,1,0)+IF(K14>J14,1,0)","v":2},0,3]
[12,"2022-10-25","Outdoor Slovenia","PULITO Solutions","19:00-1",25,27,25,18,10,15,{"$f":"IF(F15>G15,1,0)+IF(H15>I15,1,0)+IF(J15>K15,1,0)","v":1},{"$f":"IF(G15>F15,1,0)+IF(I15>H15,1,0)+IF(K15>J15,1,0)","v":2},1,2,"Gaber"]
[13,null,"Špica Bled","Unimotion","19:00-2",0,25,0,25,null,null,{"$f":"IF(F16>G16,1,0)+IF(H16>I16,1,0)+IF(J16>K16,1,0)","v":0},{"$f":"IF(G16>F16,1,0)+IF(I16>H16,1,0)+IF(K16>J16,1,0)","v":2},0,3]
[14,null,"PULITO Solutions","Špica Bled","20:00-1",25,0,25,0,null,null,{"$f":"IF(F17>G17,1,0)+IF(H17>I17,1,0)+IF(J17>K17,1,0)","v":2},{"$f":"IF(G17>F17,1,0)+IF(I17>H17,1,0)+IF(K17>J17,1,0)","v":0},3,0]
[15,null,"Outdoor Slovenia","Story team","20:00-2",18,25,25,19,9,15,{"$f":"IF(F18>G18,1,0)+IF(H18>I18,1,0)+IF(J18>K18,1,0)","v":1},{"$f":"IF(G18>F18,1,0)+IF(I18>H18,1,0)+IF(K18>J18,1,0)","v":2},1,2,"Gaber"]
[16,"2022-11-08","Unimotion","Max bar","19:00-1",25,22,20,25,15,13,2,1,2,1,"Divjak"]
[17,null,"Story team","Špica Bled","19:00-2",25,20,25,18,null,null,2,0,3,0,"Gaber"]
[18,null,"Max bar","Outdoor Slovenia","20:00-1",25,21,25,22,null,null,2,0,3,0,"Divjak"]
[19,null,"Story team","Unimotion","20:00-2",17,25,10,25,null,null,0,2,0,3,"Gaber"]
[20,"2022-11-15","PULITO Solutions","Unimotion","19:00-1",18,25,19,25,null,null,0,2,0,3,"Divjak"]
[21,null,"Max bar","Rožice","19:00-2",25,11,25,19,null,null,2,0,3,0,"Subo"]
[22,null,"Unimotion","Max bar","20:00-1",25,23,25,21,null,null,2,0,3,0,"Divjak"]
[23,null,"Rožice","PULITO Solutions","20:00-2",17,25,16,25,null,null,0,2,0,3,"Subo"]
[24,"2022-11-22","Rožice","Špica Bled","19:00-1",25,23,15,25,13,15,{"$f":"IF(F27>G27,1,0)+IF(H27>I27,1,0)+IF(J27>K27,1,0)","v":1},{"$f":"IF(G27>F27,1,0)+IF(I27>H27,1,0)+IF(K27>J27,1,0)","v":2},1,2,"Divjak"]
[25,null,"Outdoor Slovenia","Story team","19:00-2",22,25,25,17,15,8,{"$f":"IF(F28>G28,1,0)+IF(H28>I28,1,0)+IF(J28>K28,1,0)","v":2},{"$f":"IF(G28>F28,1,0)+IF(I28>H28,1,0)+IF(K28>J28,1,0)","v":1},2,1,"Gaber"]
[26,null,"Rožice","Story team","20:00-1",11,25,25,21,4,15,{"$f":"IF(F29>G29,1,0)+IF(H29>I29,1,0)+IF(J29>K29,1,0)","v":1},{"$f":"IF(G29>F29,1,0)+IF(I29>H29,1,0)+IF(K29>J29,1,0)","v":2},1,2,"Divjak"]
[27,null,"Špica Bled","Outdoor Slovenia","20:00-2",18,25,17,25,null,null,{"$f":"IF(F30>G30,1,0)+IF(H30>I30,1,0)+IF(J30>K30,1,0)","v":0},{"$f":"IF(G30>F30,1,0)+IF(I30>H30,1,0)+IF(K30>J30,1,0)","v":2},0,3,"Gaber"]
[28,"2022-11-29","PULITO Solutions","Max bar","19:00-1",21,25,14,25,null,null,0,2,0,3,"Divjak"]
[29,null,"Unimotion","Rožice","19:00-2",25,15,25,18,null,null,2,0,3,0,"Gaber"]
[30,null,"Max bar","Rožice","20:00-1",25,12,25,10,null,null,2,0,3,0,"Divjak"]
[31,null,"PULITO Solutions","Unimotion","20:00-2",22,25,20,25,null,null,0,2,0,3,"Gaber"]
[32,"2022-12-06","Špica Bled","Unimotion","19:00-1",17,25,14,25,null,null,0,2,0,3,"Divjak"]
[33,null,"Story team","PULITO Solutions","19:00-2",20,25,25,20,15,12,2,1,2,1,"Gaber"]
[34,null,"Story team","Špica Bled","20:00-1",25,12,25,20,null,null,2,0,3,0,"Divjak"]
[35,null,"Unimotion","Outdoor Slovenia","20:00-2",19,25,25,14,15,9,2,1,2,1,"Gaber"]
[36,"2022-12-13","Max bar","Outdoor Slovenia","19:00-1",25,10,25,23,null,null,2,0,3,0,"Divjak"]
[37,null,"Rožice","Špica Bled","19:00-2",26,24,25,23,null,null,2,0,3,0,"Gaber"]
[38,null,"Outdoor Slovenia","Rožice","20:00-1",22,25,25,17,15,9,2,1,2,1,"Divjak"]
[39,null,"Špica Bled","Max bar","20:00-2",22,25,15,25,null,null,0,2,0,3,"Gaber"]
[40,"2023-01-03","PULITO Solutions","Unimotion","19:00-1",21,25,19,25,null,null,0,2,0,3,"Divjak"]
[41,null,"Max bar","Story team","19:00-2",26,28,25,15,13,15,1,2,1,2,"Gaber"]
[42,null,"Story team","Unimotion","20:00-1",15,25,17,25,null,null,0,2,0,3,"Divjak"]
[43,null,"PULITO Solutions","Max bar","20:00-2",25,23,25,21,null,null,2,0,3,0,"Gaber"]
[44,"2023-01-10","Outdoor Slovenia","Rožice","19:00-1",25,16,31,33,4,15,1,2,{"$f":"IF(AND(L47=2,M47=0),3,L47)","v":1},{"$f":"IF(AND(M47=2,L47=0),3,M47)","v":2},"Divjak"]
[45,null,"Špica Bled","Max bar","19:00-2",25,13,25,13,null,null,2,0,3,0,"Gaber"]
[46,null,"Špica Bled","Outdoor Slovenia","20:00-1",25,14,25,17,null,null,2,0,3,0,"Divjak"]
[47,null,"Max bar","Rožice","20:00-2",23,25,25,11,15,8,2,1,2,1,"Gaber"]
[48,"2023-01-17","Story team","PULITO Solutions","19:00-1",21,25,15,25,null,null,0,2,0,3,"Divjak"]
[49,null,"Unimotion","Outdoor Slovenia","19:00-2",25,17,25,14,null,null,{"$f":"IF(F52>G52,1,0)+IF(H52>I52,1,0)+IF(J52>K52,1,0)","v":2},{"$f":"IF(G52>F52,1,0)+IF(I52>H52,1,0)+IF(K52>J52,1,0)","v":0},{"$f":"IF(AND(L52=2,M52=0),3,L52)","v":3},{"$f":"IF(AND(M52=2,L52=0),3,M52)","v":0},"Gaber"]
[50,null,"Outdoor Slovenia","PULITO Solutions","20:00-1",25,23,24,26,9,15,{"$f":"IF(F53>G53,1,0)+IF(H53>I53,1,0)+IF(J53>K53,1,0)","v":1},{"$f":"IF(G53>F53,1,0)+IF(I53>H53,1,0)+IF(K53>J53,1,0)","v":2},1,2,"Divjak"]
[51,null,"Story team","Unimotion","20:00-2",21,25,12,25,null,null,0,2,0,3,"Gaber"]
[52,"2023-01-24","Rožice","Story team","19:15-1",16,25,21,25,null,null,0,2,0,3,"Gaber"]
[53,null,"Max bar","Outdoor Slovenia","19:15-2",25,0,25,0,null,null,{"$f":"IF(F56>G56,1,0)+IF(H56>I56,1,0)+IF(J56>K56,1,0)","v":2},0,3,0]
[54,null,"Outdoor Slovenia","Story team","20:00-1",0,25,0,25,null,null,0,2,0,3]
[55,null,"Unimotion","Max bar","20:00-2",25,18,25,18,null,null,2,0,3,0,"Gaber"]
[56,"2023-01-31","PULITO Solutions","Špica Bled","19:00-1",25,17,25,19,null,null,{"$f":"IF(F59>G59,1,0)+IF(H59>I59,1,0)+IF(J59>K59,1,0)","v":2},{"$f":"IF(G59>F59,1,0)+IF(I59>H59,1,0)+IF(K59>J59,1,0)","v":0},{"$f":"IF(AND(L59=2,M59=0),3,L59)","v":3},{"$f":"IF(AND(M59=2,L59=0),3,M59)","v":0},"Gaber"]
[57,null,"Max bar","Story team","19:00-2",25,12,25,21,null,null,2,0,3,0,"Divjak"]
[58,null,"Story team","Špica Bled","20:00-1",25,21,25,23,null,null,2,0,3,0,"Gaber"]
[59,null,"Outdoor Slovenia","PULITO Solutions","20:00-2",24,26,25,18,15,10,2,1,2,1,"Divjak"]
[60,"2023-02-14","PULITO Solutions","Špica Bled","19:00-3",25,22,25,19,null,null,2,0,3,0,"Gaber"]
[61,null,"Unimotion","Rožice","19:00-4",25,11,25,11,null,null,2,0,3,0,"Divjak"]
[62,null,"Rožice","PULITO Solutions","20:00-3",23,25,24,26,null,null,0,2,0,3,"Gaber"]
[63,null,"Špica Bled","Unimotion","20:00-4",14,25,25,21,11,15,1,2,1,2,"Divjak"]

{"sheet":"List1","index":3,"n_rows":56,"n_cols":7,"rows_kept":56,"cut":false,"hidden":true,"merged":[]}
[]
[]
["TKN","DIHR Solutions",null,null,null,"TKN","DIHR Solutions"]
["Outdoor Slovenia","Rožice",null,null,null,"Outdoor Slovenia","Rožice"]
["Rožice","TKN",null,null,null,"Rožice","TKN"]
["Outdoor Slovenia","DIHR Solutions",null,null,null,"Outdoor Slovenia","DIHR Solutions"]
[]
["Max bar","Chilli Jesenice",null,null,null,"Max bar","Chilli Jesenice"]
["Outdoor Slovenia","TKN",null,null,null,"Outdoor Slovenia","TKN"]
["Max bar","TKN",null,null,null,"Max bar","TKN"]
["Chilli Jesenice","DIHR Solutions",null,null,null,"Chilli Jesenice","Outdoor Slovenia"]
[]
["TKN","Chilli Jesenice",null,null,null,"Rožice","Chilli Jesenice"]
["Rožice","Max bar",null,null,null,"Max bar","Outdoor Slovenia"]
["DIHR Solutions","Max bar",null,null,null,"Rožice","Max bar"]
["Rožice","TKN",null,null,null,"Chilli Jesenice","Outdoor Slovenia"]
[]
["Rožice","Chilli Jesenice",null,null,null,"DIHR Solutions","Rožice"]
["Max bar","Outdoor Slovenia",null,null,null,"TKN","Chilli Jesenice"]
["Rožice","Max bar",null,null,null,"TKN","DIHR Solutions"]
["Chilli Jesenice","Outdoor Slovenia",null,null,null,"Rožice","Chilli Jesenice"]
[]
[null,null,null,null,null,"Max bar","Outdoor Slovenia"]
[null,null,null,null,null,"DIHR Solutions","Rožice"]
[null,null,null,null,null,"DIHR Solutions","Max bar"]
[null,null,null,null,null,"Outdoor Slovenia","Rožice"]
[]
[null,null,null,null,null,"Outdoor Slovenia","TKN"]
[null,null,null,null,null,"Chilli Jesenice","DIHR Solutions"]
[null,null,null,null,null,"TKN","Chilli Jesenice"]
[null,null,null,null,null,"Outdoor Slovenia","DIHR Solutions"]
[]
[null,null,null,null,null,"Rožice","Max bar"]
[null,null,null,null,null,"Chilli Jesenice","DIHR Solutions"]
[null,null,null,null,null,"DIHR Solutions","Max bar"]
[null,null,null,null,null,"Chilli Jesenice","Rožice"]
[]
[null,null,null,null,null,"TKN","Outdoor Slovenia"]
[null,null,null,null,null,"Max bar","Chilli Jesenice"]
[null,null,null,null,null,"Outdoor Slovenia","Chilli Jesenice"]
[null,null,null,null,null,"Max bar","TKN"]
[]
[null,null,null,null,null,"Rožice","DIHR Solutions"]
[null,null,null,null,null,"TKN","Chilli Jesenice"]
[null,null,null,null,null,"Chilli Jesenice","DIHR Solutions"]
[null,null,null,null,null,"TKN","Rožice"]
[]
[null,null,null,null,null,"Max bar","Outdoor Slovenia"]
[null,null,null,null,null,"DIHR Solutions","TKN"]
[null,null,null,null,null,"DIHR Solutions","Outdoor Slovenia"]
[null,null,null,null,null,"TKN","Max bar"]
[]
[null,null,null,null,null,"Max bar","DIHR Solutions"]
[null,null,null,null,null,"Outdoor Slovenia","Rožice"]
[null,null,null,null,null,"Max bar","Chilli Jesenice"]
[null,null,null,null,null,"DIHR Solutions","Rožice"]

{"sheet":"Spisek igralcev","index":4,"n_rows":100,"n_cols":19,"rows_kept":100,"cut":false,"hidden":false,"merged":[[86,0,86,18],[58,0,58,18],[40,0,40,18],[1,0,1,18],[13,0,13,18],[26,0,26,18],[72,0,72,18]]}
[null,null,"1. kolo","2. kolo","3. kolo","4. kolo","5. kolo","6. kolo","7. kolo","8. kolo","9. kolo","10. kolo","11. kolo","12. kolo","13. kolo","14. kolo","15. kolo","16. kolo","SKUPAJ"]
["MAX BAR"]
["1.","Tjaša Berginc",1,2,null,null,2,2,null,2,null,2,null,null,null,null,null,null,{"$f":"SUM(C3:R3)","v":11}]
["2.","Neva Suhadolčan",1,2,null,null,2,2,null,2,null,2,2,2,null,2,2,null,{"$f":"SUM(C4:R4)","v":19}]
["3.","Urban Subotić",1,2,null,null,2,2,null,2,null,2,2,2,null,2,2,null,19]
["4.","Juš Hlede",1,2,null,null,2,2,null,2,null,2,2,2,null,2,2,null,19]
["5.","Nik Zorman",1,2,null,null,2,2,null,2,null,2,2,2,null,2,2,null,19]
["6.","Nina Smolej",null,null,null,null,2,null,null,null,null,null,null,null,null,null,null,null,2]
["7.","John Mark Šorl",null,1,null,null,2,2,null,2,null,2,2,null,null,2,2,null,15]
["8.","Erik Zupančič",null,null,null,null,null,2,null,null,null,null,2,2,null,null,null,null,6]
["9.","Meta Resnik",null,null,null,null,null,2,null,null,null,null,null,2,null,2,2,null,8]
["10.",null,null,null,null,null,null,null,null,null,null,null,null,null,null,null,null,null,0]
[null,null,"1. kolo","2. kolo","3. kolo","4. kolo","5. kolo","6. kolo","7. kolo","8. kolo","9. kolo","10. kolo","11. kolo","12. kolo","13. kolo","14. kolo","15. kolo","16. kolo","SKUPAJ"]
["ROŽICE"]
["1.","Urban Potočnik",1,2,1,null,null,2,null,2,null,null,null,2,null,1,null,2,{"$f":"SUM(C15:R15)","v":13}]
["2.","Maja Nučič",1,null,null,null,null,2,1,2,null,null,null,2,null,1,null,2,{"$f":"SUM(C16:R16)","v":11}]
["3.","Mojca Kavčič",1,2,null,null,null,null,null,null,null,null,null,null,null,null,null,null,3]
["4.","Matjaž Silič",1,null,1,null,null,null,2,2,null,2,null,2,null,null,null,null,10]
["5.","Gašper Aljančič",1,2,null,null,null,2,2,2,null,null,null,2,null,null,null,null,11]
["6.","Anže Kuraš",null,2,1,null,null,2,2,null,null,null,null,null,null,null,null,null,7]
["7.","Sergeja Podnar",null,2,1,null,null,null,2,null,null,2,null,null,null,null,null,2,9]
["8.","Marijana Sabolič",null,2,1,null,null,null,2,2,null,2,null,2,null,1,null,2,14]
["9.","Miha Frelih",null,2,1,null,null,null,1,null,null,2,null,null,null,1,null,2,9]
["10.","Rok Hlede",null,null,null,null,null,2,null,null,null,2,null,2,null,1,null,2,9]
["11.","Mark Mišič",null,null,null,null,null,null,null,2,null,2,null,null,null,1,null,2,7]
[null,null,"1. kolo","2. kolo","3. kolo","4. kolo","5. kolo","6. kolo","7. kolo","8. kolo","9. kolo","10. kolo","11. kolo","12. kolo","13. kolo","14. kolo","15. kolo","16. kolo","SKUPAJ"]
["ŠPICA BLED"]
["1.","Alan Adžovič",1,null,null,null,null,null,null,null,null,null,null,2,null,null,2,2,{"$f":"SUM(C28:R28)","v":7}]
["2.","Jure Jančič",1,null,null,null,1,null,2,null,2,2,null,null,null,null,null,2,{"$f":"SUM(C29:R29)","v":10}]
["3.","Robi Prešern",1,null,null,null,1,null,2,null,2,2,null,2,null,null,2,2,14]
["4.","Marko Janjuševič",1,null,null,null,1,null,2,null,2,2,null,2,null,null,2,2,14]
["5.","Tina Šorn",1,null,null,null,1,null,2,null,2,2,null,2,null,null,2,2,14]
["6.","Nik Prešern",null,null,null,null,1,null,2,null,null,2,null,2,null,null,null,null,7]
["7.","Nejc Ravnikar",null,null,null,null,1,null,2,null,2,2,null,2,null,null,2,null,11]
["8.","Leja Zakotnik",null,null,null,null,1,null,2,null,2,2,null,2,null,null,null,2,11]
["9.","Pavlič Saša",null,null,null,null,null,null,null,null,null,null,null,null,null,null,null,null,0]
["10.","Kegljevic",null,null,null,null,null,null,null,null,null,null,null,null,null,null,null,null,0]
["11.","Matjaž Jančič",null,null,null,null,null,null,null,null,null,null,null,null,null,null,null,null,0]
["12.",null,null,null,null,null,null,null,null,null,null,null,null,null,null,null,null,null,0]
[null,null,"1. kolo","2. kolo","3. kolo","4. kolo","5. kolo","6. kolo","7. kolo","8. kolo","9. kolo","10. kolo","11. kolo","12. kolo","13. kolo","14. kolo","15. kolo","16. kolo","SKUPAJ"]
["OUTDOOR SLOVENIJA"]
["1.","Sašo Šubelj",1,null,null,2,1,null,2,null,1,2,null,null,null,null,null,null,{"$f":"SUM(C42:R42)","v":9}]
["2.","Miha Šporar",1,null,null,2,1,null,2,null,1,2,null,2,2,null,2,null,{"$f":"SUM(C43:R43)","v":15}]
["3.","Urška Kalan",1,null,2,2,1,null,2,null,1,2,null,2,2,null,2,null,17]
["4.","Andrej Sodja",1,null,2,null,1,null,2,null,null,null,null,2,2,null,2,null,12]
["5.","Jaša Sodja",1,null,2,2,1,null,2,null,1,null,null,null,null,null,2,null,11]
["6.","Uroš Pančur",1,null,2,2,1,null,2,null,1,2,null,2,2,null,2,null,17]
["7.","Maruša Ravnik",null,null,null,null,null,null,null,null,null,null,null,null,null,null,null,null,0]
["8.","Gašper Košnik",null,null,null,null,null,null,null,null,null,null,null,null,null,null,null,null,0]
["9.","Petra Flego",null,null,null,null,null,null,null,null,null,null,null,null,null,null,null,null,0]
["10.","Tina Miklič",null,null,null,null,null,null,null,null,null,null,null,null,null,null,null,null,0]
["11.","Igor Zupan",null,null,null,null,null,null,null,null,null,null,null,null,null,null,null,null,0]
["12.","Nika Knez",null,null,2,2,null,null,2,null,null,null,null,null,null,null,null,null,6]
["13.","Jera Bohinc",null,null,null,null,null,null,null,null,null,null,null,null,null,null,null,null,0]
["14.","Barbara Potočan Iskra",null,null,null,2,null,null,null,null,null,null,null,2,2,null,null,null,6]
["15.","Ajla Suljanivić",null,null,null,null,null,null,null,null,1,2,null,null,1,null,2,null,6]
["16.",null,null,null,null,null,null,null,null,null,null,null,null,null,null,null,null,null,0]
[null,null,"1. kolo","2. kolo","3. kolo","4. kolo","5. kolo","6. kolo","7. kolo","8. kolo","9. kolo","10. kolo","11. kolo","12. kolo","13. kolo","14. kolo","15. kolo","16. kolo","SKUPAJ"]
["PULITO SOLUTIONS"]
["1.","Nejc Mežan",1,2,null,1,null,2,null,null,2,null,2,null,null,null,2,2,{"$f":"SUM(C60:R60)","v":14}]
["2.","Luka Sinobad",1,2,null,1,null,2,null,2,2,null,2,null,2,null,2,2,{"$f":"SUM(C61:R61)","v":18}]
["3.","Matej Gašperšič",1,2,null,1,null,null,null,2,2,null,2,null,2,null,2,2,16]
["4.","Matjaž Finžgar",1,null,null,null,null,2,null,2,null,null,null,null,null,null,2,null,7]
["5.","Polona Potočnik",1,2,null,1,null,2,null,null,2,null,null,null,null,null,null,null,8]
["6.","Špela Grilc",1,2,null,1,null,2,null,2,2,null,2,null,2,null,2,2,18]
["7.","Špela Ulčar",1,2,null,1,null,2,null,2,2,null,2,null,2,null,2,2,18]
["8.","Gašper Kržišnik ",null,null,null,null,null,2,null,2,2,null,2,null,2,null,2,null,12]
["9.","Ana Kržišnik ",null,null,null,null,null,null,null,null,null,null,null,null,null,null,null,null,0]
["10.","Matic Pristov ",null,null,null,null,null,null,null,null,null,null,null,null,null,null,null,null,0]
["11.","Helena Alenka Potočnik",null,null,null,null,null,null,null,null,null,null,null,null,2,null,2,2,6]
["12.",null,null,null,null,null,null,null,null,null,null,null,null,null,null,null,null,null,0]
[null,null,"1. kolo","2. kolo","3. kolo","4. kolo","5. kolo","6. kolo","7. kolo","8. kolo","9. kolo","10. kolo","11. kolo","12. kolo","13. kolo","14. kolo","15. kolo","16. kolo","SKUPAJ"]
["STORY TEAM"]
["1.","Aleš Fartek",1,2,null,1,2,null,2,null,2,null,2,null,2,null,null,null,{"$f":"SUM(C74:R74)","v":14}]
["2.","Emir Čatak",1,null,null,null,null,null,null,null,null,null,null,null,null,null,null,null,{"$f":"SUM(C75:R75)","v":1}]
["3.","Danijela Tadič",1,2,null,null,2,null,2,null,2,null,null,null,null,2,null,null,11]
["4.","Pia Svetina",1,null,null,1,2,null,null,null,null,null,2,null,null,null,2,null,8]
["5.","Maks Pogačnik",1,null,null,1,2,null,2,null,null,null,2,null,2,2,2,null,14]
["6.","Uroš Štalc",1,2,null,null,2,null,2,null,2,null,2,null,2,2,2,null,17]
["7.","Luka Dornik",1,2,null,1,2,null,2,null,2,null,2,null,null,2,2,null,16]
["8.","Nina Lukanc",1,2,null,1,2,null,null,null,null,null,2,null,2,null,2,null,12]
["9.","Erik Krnc",1,2,null,1,2,null,null,null,null,null,null,null,2,2,2,null,12]
["10.","Jan Klemenčič",null,null,null,null,null,null,2,null,2,null,2,null,null,null,null,null,6]
["11.","Nadja Dimitrievska",null,null,null,null,null,null,1,null,2,null,null,null,null,2,2,null,7]
["12.",null,null,null,null,null,null,null,null,null,null,null,null,null,null,null,null,null,0]
[null,null,"1. kolo","2. kolo","3. kolo","4. kolo","5. kolo","6. kolo","7. kolo","8. kolo","9. kolo","10. kolo","11. kolo","12. kolo","13. kolo","14. kolo","15. kolo","16. kolo","SKUPAJ"]
["UNIMOTION"]
["1.","Urša Dolar",null,null,2,null,2,2,null,2,2,null,2,null,null,1,null,2,{"$f":"SUM(C88:R88)","v":15}]
["2.","Tjaša Kikelj Beravs",null,null,2,null,null,2,null,2,null,null,null,null,2,null,null,2,{"$f":"SUM(C89:R89)","v":10}]
["3.","Aleš Kalan",null,null,2,null,2,null,null,2,null,null,2,null,null,null,null,2,10]
["4.","Mark Blagne",null,null,null,null,null,2,null,2,2,null,2,null,2,1,null,2,13]
["5.","Matevž Globočnik",null,null,null,null,null,2,null,2,null,null,2,null,2,1,null,2,11]
["6.","Žiga Peljhan ",null,null,null,null,null,null,null,null,null,null,null,null,null,null,null,null,0]
["7.","Robert Petrovski",null,null,2,null,2,2,null,2,2,null,2,null,2,1,null,2,17]
["8.","Jure Jenko",null,null,null,null,2,2,null,null,2,null,2,null,2,1,null,null,11]
["9.","Klemen Noč",null,null,2,null,2,null,null,2,null,null,2,null,null,null,null,null,8]
["10.","Monika Čančar",null,null,null,null,null,null,null,null,null,null,null,null,null,null,null,null,0]
["11.","Nina Čuk",null,null,2,null,2,null,null,null,2,null,2,null,2,1,null,null,11]
["12.","Doroteja Brgant",null,null,null,null,null,null,null,null,null,null,null,null,null,null,null,null,0]
["13.",null,null,null,null,null,null,null,null,null,null,null,null,null,null,null,null,null,0]

{"sheet":"list PCT","index":5,"n_rows":15,"n_cols":2,"rows_kept":15,"cut":false,"hidden":true,"merged":[]}
["Ime ekipe: DIHR Solutions"]
[]
["S podpisom jamčim, da izpoljnjujem pogoj PCT na udeležbi na rekreacijski ligi v odbojki."]
[]
["Ime in priimek ","Podpis"]
["Nejc Mežan - vodja ekipe"]
["Gasper Kržišnik"]
["Luka Sinobad"]
["Matej Gašperšič"]
["Matjaž Finžgar"]
["Janez Mikolič"]
["Polona Potočnik"]
["Špela Ulčar"]
["Špela Grilc"]
["Ana Kržišnik"]

{"sheet":"list PCT (2)","index":6,"n_rows":16,"n_cols":2,"rows_kept":16,"cut":false,"hidden":true,"merged":[]}
["Ime ekipe: Rožice"]
[]
["S podpisom jamčim, da izpoljnjujem pogoj PCT na udeležbi na rekreacijski ligi v odbojki."]
[]
["Ime in priimek ","Podpis"]
["Mojca Kavčič"]
["Maja Nučič"]
["Saša Pavlič"]
["Anže Kuraš"]
["Miha Frelih"]
["Mark Mišič "]
["Nik Prešern "]
["Urban Potočnik"]
["Klemen Ravnihar"]
["Sergeja Podnar"]
["Matjaž Silič"]

{"sheet":"list PCT (3)","index":7,"n_rows":15,"n_cols":2,"rows_kept":15,"cut":false,"hidden":true,"merged":[]}
["Ime ekipe: Max bar"]
[]
["S podpisom jamčim, da izpoljnjujem pogoj PCT na udeležbi na rekreacijski ligi v odbojki."]
[]
["Ime in priimek ","Podpis"]
["Tjaša Berginc"]
["Neva Suhadolčan"]
["Tanja Rode"]
["Nina Smolej"]
["Lucija Opalk"]
["John Mark Šorl"]
["Juš Hlede"]
["Nejc Ravnikar"]
["Erik Zupančič"]
["Urban Subotić"]